bitfinex/quotes_ETHUSD_20230701
["timestamp","ask_amount","ask_price","bid_price","bid_amount"]
[1688171412526,10.30258,1941.3,1940.8,2.43]
[1688171413091,10.30258,1941.3,1940.8,7.5824]
[1688171413497,3.0,1941.2,1940.8,7.5824]
[1688171413794,8.15145,1941.2,1940.8,8.61465274]
[1688171414106,6.45399,1941.4,1940.8,8.61465274]
[1688171414325,6.45399,1941.4,1940.8,16.34341274]
[1688171414623,6.45399,1941.4,1940.8,19.03093458]
[1688171414792,6.45399,1941.4,1940.8,20.91043458]
[1688171414995,6.45399,1941.4,1940.9,0.82840729]
[1688171415223,5.15099,1941.4,1940.9,5.98042729]
[1688171415494,5.15099,1941.4,1940.9,13.82018913]
[1688171415891,5.15092,1941.4,1941.1,5.1516]
[1688171416126,5.15092,1941.4,1941.0,12.99115184]
[1688171416326,5.15092,1941.4,1941.0,14.27973584]
[1688171417026,5.15092,1941.4,1941.0,19.71573584]
[1688171417231,10.71142718,1941.5,1941.1,0.48]
[1688171417393,5.56056718,1941.5,1941.2,2.68752184]
[1688171417726,0.40977718,1941.5,1941.2,7.83892184]
[1688171417895,5.15053,1941.6,1941.2,14.02262458]
[1688171418097,5.5713266,1941.6,1941.2,14.02262458]
[1688171418518,0.4207966,1941.6,1941.2,14.02262458]
[1688171418719,0.4207966,1941.6,1941.2,16.59834458]
[1688171418922,5.15025,1941.7,1941.2,16.59834458]
[1688171419330,5.15025,1941.7,1941.2,21.17684458]
[1688171420107,1.818025,1941.6,1941.0,0.01646655]
[1688171420310,5.15148,1941.2,1940.6,5.15286]
[1688171420534,5.15148,1941.2,1940.7,2.68752184]
[1688171420704,10.30296,1941.2,1940.6,5.15286]
[1688171420907,10.30296,1941.2,1940.5,9.73166]
[1688171420908,12.88046,1941.0,1940.5,2.5898]
[1688171421116,5.15256,1940.8,1940.5,2.5898]
[1688171421836,10.30512,1940.8,1940.5,2.5898]
[1688171422513,10.30512,1940.8,1940.5,7.7431]
[1688171425108,10.30512,1940.8,1940.5,2.5898]
[1688171425308,10.30512,1940.8,1940.5,7.74309]
[1688171425529,11.593244,1940.8,1940.5,5.15329]
[1688171425730,14.169494,1940.8,1940.3,37.18886249]
[1688171425920,14.169494,1940.8,1940.3,7.15886249]
[1688171426120,14.169494,1940.8,1940.3,2.00517249]
[1688171426339,14.169494,1940.8,1940.3,7.15897249]
[1688171426534,14.169494,1940.8,1940.3,12.31281249]
[1688171427122,11.593244,1940.8,1940.3,14.88973249]
[1688171427517,6.440684,1940.8,1940.3,14.88973249]
[1688171427717,5.15239,1940.9,1940.4,2.68752184]
[1688171427918,5.15239,1940.9,1940.5,12.88299]
[1688171428460,5.15239,1940.9,1940.5,10.30634]
[1688171428461,10.30478,1940.9,1940.5,10.30634]
[1688171428667,14.1839,1940.9,1940.3,7.15893249]
[1688171428963,1.303,1940.7,1940.3,2.00517249]
[1688171429120,5.15309,1940.6,1940.3,7.15899249]
[1688171429714,5.15309,1940.6,1940.1,2.5249]
[1688171429715,0.128621,1940.3,1940.1,2.5249]
[1688171429958,0.128621,1940.3,1940.1,7.67922]
[1688171430842,0.128621,1940.3,1940.1,12.83359]
[1688171431024,0.128621,1940.3,1940.1,19.85437984]
[1688171432136,0.128621,1940.3,1940.1,17.27719984]
[1688171432336,0.128621,1940.3,1940.1,15.52111184]
[1688171433025,0.12579543,1940.3,1940.1,15.52111184]
[1688171433220,0.12579543,1940.3,1940.2,0.01647334]
[1688171433520,5.15325,1940.6,1940.2,5.17042334]
[1688171435038,10.30639,1940.6,1940.2,5.17042334]
[1688171435270,12.024968,1940.6,1940.2,5.17042334]
[1688171436249,12.024968,1940.6,1940.1,2.5249]
[1688171436470,6.871718,1940.6,1940.1,2.5249]
[1688171437143,5.15314,1940.6,1940.1,15.52114184]
[1688171437346,8.15288,1940.7,1940.1,18.09832184]
[1688171438273,8.15288,1940.7,1940.1,17.94832184]
[1688171439448,8.15288,1940.7,1940.2,2.68752184]
[1688171439656,8.15288,1940.7,1940.3,10.30744]
[1688171440063,3.0,1940.7,1940.4,2.68752184]
[1688171440261,0.42209556,1940.9,1940.5,10.30662]
[1688171440470,10.30425,1941.0,1940.5,10.30662]
[1688171440643,10.30425,1941.0,1940.5,12.35182]
[1688171441353,10.30425,1941.0,1940.5,14.49462]
[1688171441875,6.58517483,1941.1,1940.6,2.68752184]
[1688171442078,0.42043269,1941.1,1940.7,10.30528]
[1688171442377,3.0,1941.2,1940.7,12.88166]
[1688171442541,0.4295,1941.2,1940.7,14.88056]
[1688171442741,3.4295,1941.2,1940.7,14.88056]
[1688171442943,3.4295,1941.2,1940.7,17.56808184]
[1688171443148,3.0,1941.2,1940.7,17.56808184]
[1688171443348,3.0,1941.3,1940.7,17.56808184]
[1688171443764,3.40625491,1941.3,1940.8,3.18399008]
[1688171444073,3.0,1941.2,1940.9,10.30425]
[1688171444273,0.40625491,1941.3,1940.9,12.99177184]
[1688171444571,8.15074,1941.5,1940.9,12.99177184]
[1688171444773,0.815074,1941.4,1940.9,12.99177184]
[1688171445343,5.966084,1941.4,1940.9,12.99177184]
[1688171445661,3.0,1941.3,1940.9,12.99177184]
[1688171453449,3.0,1941.3,1941.0,2.68752184]
[1688171453654,3.815074,1941.4,1941.0,7.83930184]
[1688171454258,3.0,1941.4,1941.0,13.27530184]
[1688171454489,0.42038607,1941.5,1941.3,6.734]
[1688171454659,0.13097002,1941.9,1941.4,19.43328184]
[1688171454858,0.13097002,1941.9,1941.5,1.303]
[1688171455061,0.13097002,1941.9,1941.6,15.56334184]
[1688171455283,0.13097002,1941.9,1941.7,2.03633418]
[1688171455449,0.13097002,1941.9,1941.8,12.87465]
[1688171455655,0.13097002,1941.9,1941.8,10.29972]
[1688171456088,0.13097002,1941.9,1941.7,5.14993]
[1688171456266,0.13097002,1941.9,1941.7,5.15012]
[1688171456586,0.13097002,1941.9,1941.7,10.30001]
[1688171456887,0.13097002,1941.9,1941.7,12.87523]
[1688171457188,0.13097002,1941.9,1941.7,10.30017]
[1688171458404,0.13097002,1941.9,1941.7,14.162766]
[1688171458758,0.13097002,1941.9,1941.7,12.87523]
[1688171460013,0.13097002,1941.9,1941.7,15.56275184]
[1688171460887,3.0,1942.2,1941.8,12.89110976]
[1688171461087,2.78008037,1942.3,1941.9,2.68752184]
[1688171461407,0.5,1941.6,1941.5,0.26773971]
[1688171461694,0.5,1941.3,1940.8,5.15228]
[1688171461890,2.368093,1941.3,1940.8,5.15228]
[1688171462078,5.368093,1941.3,1940.8,5.15228]
[1688171462287,3.0,1941.3,1940.8,5.15246]
[1688171462468,3.0,1941.4,1940.8,15.74097]
[1688171462670,3.0,1941.4,1940.8,10.58846]
[1688171462864,3.0,1941.4,1940.8,11.89146]
[1688171463057,3.0,1941.4,1940.9,6.75546739]
[1688171463396,5.15044,1941.6,1941.0,0.67554674]
[1688171463397,3.0,1941.5,1941.0,0.67554674]
[1688171463977,8.1507,1941.5,1941.0,0.67554674]
[1688171464290,15.87672,1941.5,1941.1,0.48]
[1688171464503,15.87672,1941.5,1940.9,0.01646739]
[1688171466516,15.87672,1941.5,1941.0,2.68752184]
[1688171466708,13.3014,1941.5,1941.1,0.48]
[1688171466889,13.3014,1941.5,1941.2,2.68752184]
[1688171467289,15.87672,1941.5,1941.2,2.68752184]
[1688171467488,10.30236,1941.3,1941.1,0.48]
[1688171467708,3.0,1941.2,1941.1,0.48]
[1688171467878,8.15145,1941.2,1941.1,0.48]
[1688171470018,8.15145,1941.2,1941.1,8.60352184]
[1688171470019,3.0,1941.2,1941.1,8.60352184]
[1688171470419,6.05371429,1941.6,1941.1,8.60352184]
[1688171470588,3.0,1941.5,1941.2,2.68752184]
[1688171470783,13.3016,1941.5,1941.2,2.68752184]
[1688171470987,13.3016,1941.5,1940.7,8.94328]
[1688171471203,13.3016,1941.5,1940.8,3.16752184]
[1688171471685,13.3016,1941.5,1940.8,8.31998184]
[1688171472019,9.73848,1941.5,1940.8,15.74241302]
[1688171473315,14.88913,1941.5,1940.8,15.74241302]
[1688171473522,1.303,1941.3,1940.9,2.166]
[1688171473724,1.303,1941.2,1940.9,10.00575184]
[1688171474020,9.45447,1941.2,1940.9,10.00575184]
[1688171474312,10.915057,1941.2,1940.9,10.00575184]
[1688171475483,9.45447,1941.2,1940.9,10.00575184]
[1688171475684,14.60594,1941.2,1940.9,10.00575184]
[1688171476526,8.15147,1941.2,1940.9,10.00575184]
[1688171476717,3.0,1941.2,1940.9,10.00575184]
[1688171477085,8.15151,1941.2,1940.9,10.00575184]
[1688171478330,3.0,1941.2,1940.9,15.15799184]
[1688171478494,3.0,1941.4,1940.9,15.15799184]
[1688171478686,4.619233,1941.4,1940.9,15.15799184]
[1688171479319,9.770183,1941.4,1940.9,15.15799184]
[1688171479918,9.720183,1941.4,1940.9,15.15799184]
[1688171480119,4.569233,1941.4,1941.0,2.68752184]
[1688171480314,4.569233,1941.4,1941.0,7.83938184]
[1688171480518,9.720173,1941.4,1941.0,7.83938184]
[1688171482183,8.10094,1941.4,1941.0,7.83938184]
[1688171486428,8.10094,1941.4,1941.0,2.68752184]
[1688171489298,2.95,1941.4,1941.1,0.48]
[1688171489493,8.10097,1941.4,1941.1,3.16752184]
[1688171489700,13.25194,1941.4,1941.1,3.16752184]
[1688171490427,14.78184729,1941.4,1941.1,3.16752184]
[1688171491327,15.19731987,1941.4,1941.1,3.16752184]
[1688171493625,15.19731987,1941.4,1940.9,2.166]
[1688171493827,1.303,1941.2,1940.7,2.4996]
[1688171494034,5.15132,1941.3,1940.7,2.4996]
[1688171494192,3.0,1941.2,1940.6,5.16949994]
[1688171494524,13.30319,1941.2,1940.7,7.69143]
[1688171496027,13.30319,1941.2,1940.7,12.8442]
[1688171496730,1.303,1941.1,1940.6,5.16926994]
[1688171496919,6.4548,1941.1,1940.7,5.15273]
[1688171497114,7.915428,1941.1,1940.7,5.15273]
[1688171497315,13.067228,1941.1,1940.7,5.15273]
[1688171497732,13.017228,1941.1,1940.7,5.15273]
[1688171497931,13.017228,1941.1,1940.4,2.0]
[1688171497932,1.292,1941.0,1940.4,5.15347]
[1688171498099,12.88104,1940.9,1940.2,7.71198]
[1688171498304,4.288104,1940.8,1940.2,10.39949184]
[1688171498530,5.15295,1940.7,1940.2,15.55359184]
[1688171499226,10.3059,1940.7,1940.1,35.18427]
[1688171499425,10.3059,1940.7,1940.2,5.15404]
[1688171499732,10.734724,1940.8,1940.2,12.88519]
[1688171500040,9.440724,1940.8,1940.2,12.88519]
[1688171500210,3.0,1940.8,1940.2,16.86123084]
[1688171500417,3.0,1940.9,1940.2,16.86123084]
[1688171500725,3.0,1940.9,1940.2,18.89143084]
[1688171501737,3.0,1940.9,1940.4,10.30673]
[1688171501902,3.944313,1940.9,1940.4,10.30673]
[1688171502646,9.096593,1940.9,1940.4,10.30673]
[1688171503756,3.944313,1940.9,1940.4,10.30673]
[1688171504618,3.944313,1940.9,1940.4,12.90983]
[1688171505132,1.291,1941.0,1940.5,2.68752184]
[1688171505312,1.45942598,1941.2,1940.6,13.36227]
[1688171505313,0.41087248,1941.2,1940.6,13.36227]
[1688171505515,0.41087248,1941.2,1940.6,16.04979184]
[1688171505820,10.30266,1941.3,1940.6,16.04979184]
[1688171506136,5.15122,1941.3,1940.8,5.15241]
[1688171506330,5.15122,1941.3,1940.9,2.6031]
[1688171506753,8.15147,1941.2,1940.9,2.6031]
[1688171507512,3.0,1941.2,1940.9,2.6031]
[1688171508815,0.12817178,1941.5,1940.9,5.29062184]
[1688171509019,0.40508277,1941.3,1941.0,1.00906218]
[1688171509226,5.27888178,1941.5,1941.0,1.00906218]
[1688171509561,10.42965178,1941.5,1941.0,0.48]
[1688171510319,8.15097,1941.4,1941.0,0.48]
[1688171510721,3.0,1941.4,1941.0,0.48]
[1688171511125,8.151,1941.4,1941.0,0.48]
[1688171512643,13.302,1941.4,1941.0,5.63193]
[1688171513354,13.302,1941.4,1941.0,5.15193]
[1688171514251,13.302,1941.4,1940.9,17.57915184]
[1688171515158,13.302,1941.4,1940.9,12.42702184]
[1688171515336,15.87746,1941.4,1940.9,12.42702184]
[1688171516348,17.60832318,1941.4,1940.9,12.42702184]
[1688171519130,15.03286318,1941.4,1940.9,12.42702184]
[1688171520546,15.43748893,1941.4,1940.9,12.42702184]
[1688171522145,18.01294893,1941.4,1940.9,12.42702184]
[1688171524843,15.43748893,1941.4,1940.9,12.42702184]
[1688171529949,18.01294893,1941.4,1940.9,12.42702184]
[1688171530274,18.01294893,1941.4,1940.9,4.5874]
[1688171530275,5.1515,1941.2,1940.9,4.5874]
[1688171531564,10.303,1941.2,1940.5,5.15318]
[1688171531762,0.93,1941.0,1940.5,2.7203]
[1688171531942,5.15226,1940.9,1940.5,2.7203]
[1688171532572,5.15226,1940.9,1940.5,7.87356]
[1688171532778,11.62715,1941.0,1940.5,7.87356]
[1688171533069,8.1523,1940.9,1940.5,7.87356]
[1688171533877,13.3046,1940.9,1940.5,2.7203]
[1688171535379,13.3046,1940.9,1940.5,2.73677079]
[1688171535874,13.3046,1940.9,1940.5,7.89002079]
[1688171536069,15.024959,1940.9,1940.5,7.89002079]
[1688171540290,15.024959,1940.9,1940.5,2.73677079]
[1688171540518,15.024959,1940.9,1940.5,0.01647079]
[1688171540820,15.024959,1940.9,1940.1,6.08424]
[1688171540821,18.531079,1940.9,1940.1,6.08424]
[1688171541088,18.531079,1940.9,1940.2,5.154]
[1688171541089,5.15297,1940.7,1940.2,5.154]
[1688171541270,10.30594,1940.7,1940.2,5.154]
[1688171541468,3.0,1940.6,1940.0,2.7571]
[1688171541675,13.18369,1940.5,1940.0,2.7571]
[1688171541913,14.11369,1940.5,1940.0,2.7571]
[1688171542055,14.11369,1940.5,1940.0,13.06636]
[1688171542393,11.53704,1940.5,1940.0,13.06636]
[1688171542793,14.11369,1940.5,1940.0,7.91173]
[1688171543005,14.11369,1940.5,1940.0,2.7571]
[1688171544472,14.11369,1940.5,1939.9,5.15474]
[1688171544674,10.30704,1940.5,1940.1,5.15424]
[1688171544865,10.30704,1940.5,1940.0,8.32201184]
[1688171545058,12.88369,1940.5,1940.0,10.48011184]
[1688171545469,12.88369,1940.5,1940.0,10.49658688]
[1688171545671,10.30704,1940.5,1940.0,15.65121688]
[1688171545877,10.30704,1940.5,1940.0,17.56708357]
[1688171547184,10.30704,1940.5,1940.0,12.41245357]
[1688171547967,10.30778,1940.3,1940.0,2.17457504]
[1688171548165,3.0,1940.2,1940.0,0.01647504]
[1688171548369,3.0,1940.2,1940.1,2.68752184]
[1688171548610,3.0,1940.8,1940.1,3.16752184]
[1688171548766,10.30523,1940.8,1940.3,10.30765]
[1688171548972,4.62215556,1941.1,1940.3,10.30765]
[1688171548973,5.15212,1941.0,1940.4,4.64828684]
[1688171549191,5.15231,1940.9,1940.4,4.64828684]
[1688171549597,5.15203,1941.0,1940.5,0.48]
[1688171549789,10.72490875,1941.1,1940.6,7.84047184]
[1688171550004,10.72490875,1941.1,1940.7,2.5927]
[1688171550203,13.30075875,1941.1,1940.7,2.5927]
[1688171550695,13.30075875,1941.1,1940.7,4.35888118]
[1688171550933,5.15162,1941.2,1940.8,0.93]
[1688171551087,5.1513,1941.3,1940.9,2.68752184]
[1688171551288,5.15126,1941.3,1940.9,4.76312184]
[1688171551529,5.15126,1941.3,1940.9,5.75468402]
[1688171551749,10.30264,1941.3,1940.9,5.75468402]
[1688171551901,10.30264,1941.3,1940.9,4.76312184]
[1688171551902,12.87823,1941.3,1940.9,4.76312184]
[1688171554488,13.28078845,1941.3,1940.9,4.76312184]
[1688171555048,10.70519845,1941.3,1940.9,4.76312184]
[1688171555533,10.70519845,1941.3,1940.8,0.01646824]
[1688171555844,10.30512,1940.8,1940.5,2.1322]
[1688171555991,5.15256,1940.8,1940.5,2.1322]
[1688171556393,10.30512,1940.8,1940.5,2.1322]
[1688171556626,3.0,1941.0,1940.6,0.01646994]
[1688171556833,5.15181,1941.1,1940.6,5.65309912]
[1688171557123,3.0,1941.0,1940.7,4.7181]
[1688171558027,8.152,1941.0,1940.7,4.7181]
[1688171560153,13.304,1941.0,1940.7,4.7181]
[1688171560465,13.304,1941.0,1940.5,1.9902]
[1688171560466,1.3304,1940.9,1940.5,1.9902]
[1688171560754,10.30512,1940.8,1940.5,4.5695]
[1688171562649,10.30512,1940.8,1940.5,9.72275]
[1688171563427,5.15256,1940.8,1940.5,9.72275]
[1688171564127,5.15256,1940.8,1940.5,12.14983779]
[1688171567051,5.15239,1940.9,1940.6,2.68752184]
[1688171567370,5.15239,1940.9,1940.6,8.77054184]
[1688171567552,5.15239,1940.9,1940.6,8.78701178]
[1688171567753,5.15239,1940.9,1940.6,7.85701178]
[1688171567989,5.15131,1941.3,1940.6,17.24816881]
[1688171568188,5.15131,1941.3,1940.9,0.93]
[1688171568392,5.15131,1941.3,1940.9,3.61752184]
[1688171568548,5.15131,1941.3,1940.9,3.63398923]
[1688171568751,5.15131,1941.3,1940.9,4.51263215]
[1688171568995,5.15131,1941.3,1940.9,7.26013215]
[1688171569479,3.0,1941.2,1940.9,7.26013215]
[1688171569652,3.0,1941.2,1940.9,6.33013215]
[1688171570866,3.0,1941.3,1941.1,0.93]
[1688171571072,0.42009615,1941.4,1941.1,3.09727402]
[1688171571073,3.42009615,1941.4,1941.1,3.09727402]
[1688171571385,8.15097,1941.4,1941.1,3.09727402]
[1688171575409,8.15097,1941.4,1941.2,0.48]
[1688171579092,13.30194,1941.4,1941.2,0.48]
[1688171580204,3.0,1941.4,1941.2,3.16752184]
[1688171580408,5.69323241,1941.5,1941.3,0.31675218]
[1688171580610,5.69323241,1941.5,1941.2,3.16752184]
[1688171580611,10.84398241,1941.5,1941.2,3.16752184]
[1688171580908,8.15099,1941.4,1941.2,0.48]
[1688171581697,8.15099,1941.4,1941.1,0.48]
[1688171581895,8.15099,1941.4,1941.1,3.16752184]
[1688171582706,13.30198,1941.4,1941.1,3.16752184]
[1688171583231,3.0,1941.4,1941.1,3.16752184]
[1688171583527,3.0,1941.4,1941.1,3.57657402]
[1688171583927,8.15103,1941.4,1941.1,3.57657402]
[1688171584510,8.10103,1941.4,1941.1,3.57657402]
[1688171584690,8.10103,1941.4,1941.1,0.48]
[1688171584916,13.25206,1941.4,1940.9,5.7425]
[1688171585117,15.82752,1941.4,1940.9,7.50002184]
[1688171585291,15.82752,1941.4,1940.9,4.8125]
[1688171587325,13.25206,1941.4,1941.0,0.01646655]
[1688171589398,14.84761818,1941.4,1941.0,0.01646655]
[1688171589896,17.42307818,1941.4,1941.0,0.01646655]
[1688171590804,17.42307818,1941.4,1940.9,2.7475]
[1688171592260,17.83607927,1941.4,1940.9,2.7475]
[1688171593333,0.93,1941.3,1940.9,2.7475]
[1688171593532,10.303,1941.2,1940.9,2.7475]
[1688171593829,3.0,1941.1,1940.9,2.6975]
[1688171594031,8.15173,1941.1,1940.9,2.6975]
[1688171596427,13.30346,1941.1,1940.9,2.6975]
[1688171596842,8.15173,1941.1,1940.9,2.6975]
[1688171603395,9.482058,1941.1,1940.9,2.6975]
[1688171605265,8.15173,1941.1,1940.9,2.6975]
[1688171620716,3.0,1941.1,1940.9,2.6975]
[1688171621011,3.0,1941.2,1940.9,7.84973]
[1688171621417,3.0,1941.3,1940.9,7.84973]
[1688171622087,3.0,1941.3,1940.9,9.86823]
[1688171622287,3.0,1941.3,1940.9,11.463283]
[1688171623700,3.0,1941.3,1941.0,0.48]
[1688171623901,3.0,1941.3,1941.0,5.63194]
[1688171626906,3.0,1941.3,1940.9,7.25752039]
[1688171627109,13.30237,1941.3,1940.6,0.93]
[1688171627372,13.30237,1941.3,1940.6,4.7321]
[1688171627373,1.330237,1941.2,1940.6,4.7321]
[1688171627642,12.87971,1941.1,1940.6,4.7321]
[1688171627840,12.87971,1941.1,1940.6,9.88508]
[1688171628753,12.87971,1941.1,1940.6,4.7321]
[1688171628942,3.0,1941.0,1940.2,2.81254192]
[1688171629116,5.15262,1940.8,1940.3,2.7162]
[1688171629311,10.30524,1940.8,1940.2,2.1821]
[1688171629732,3.0,1940.7,1940.2,7.3361]
[1688171629940,8.15279,1940.7,1940.2,2.1821]
[1688171630138,9.483331,1940.7,1940.1,2.7162]
[1688171630313,0.926,1940.6,1940.1,2.7162]
[1688171630508,10.30688,1940.5,1940.0,5.15453]
[1688171630732,10.30688,1940.5,1940.0,10.30905]
[1688171631513,12.88353,1940.5,1940.0,10.30905]
[1688171631722,10.30688,1940.5,1940.0,5.15452]
[1688171632132,10.30688,1940.5,1940.0,10.30915]
[1688171632333,5.15344,1940.5,1940.0,10.30915]
[1688171632545,5.15344,1940.5,1940.0,10.32562504]
[1688171633051,5.15344,1940.5,1940.0,12.10576154]
[1688171633981,5.15317,1940.6,1940.0,14.68307154]
[1688171634177,3.0,1940.5,1940.0,15.60607154]
[1688171634373,3.0,1940.5,1940.1,0.48]
[1688171634572,8.1529,1940.7,1940.2,10.30814]
[1688171634877,9.483455,1940.7,1940.2,10.30814]
[1688171635073,5.15265,1940.8,1940.2,13.01213518]
[1688171635375,5.55547026,1941.0,1940.3,4.0891]
[1688171635590,5.55547026,1941.0,1940.5,5.15328]
[1688171635745,5.55547026,1941.0,1940.5,5.16975079]
[1688171637052,3.0,1940.9,1940.5,5.16975079]
[1688171637338,3.0,1940.9,1940.5,10.32306079]
[1688171637741,3.0,1940.9,1940.5,14.18969387]
[1688171637951,0.40333026,1941.0,1940.5,15.11669387]
[1688171638153,5.15145,1941.2,1940.5,15.11669387]
[1688171638373,5.15145,1941.2,1940.3,3.1591]
[1688171638374,7.83897184,1941.2,1940.3,3.1591]
[1688171638575,15.56628184,1941.2,1940.3,13.46647]
[1688171638778,15.56628184,1941.2,1940.3,16.04339]
[1688171638973,0.928,1941.1,1940.4,2.68752184]
[1688171639174,6.07982,1941.1,1940.6,10.30602]
[1688171639354,3.0,1941.0,1940.7,2.6375]
[1688171639747,8.152,1941.0,1940.7,7.79024]
[1688171639954,8.152,1941.0,1940.7,2.6375]
[1688171640166,8.152,1941.0,1940.5,2.0919]
[1688171640359,8.152,1941.0,1940.5,4.7294]
[1688171640573,9.6874947,1941.0,1940.5,7.79071]
[1688171641382,9.6874947,1941.0,1940.5,12.94402]
[1688171644701,9.6874947,1941.0,1940.5,7.79071]
[1688171645002,9.6874947,1941.0,1940.5,12.94402]
[1688171645975,9.6874947,1941.0,1940.5,15.07442]
[1688171650314,3.41418781,1941.0,1940.5,19.41783516]
[1688171650711,8.56618781,1941.0,1940.5,19.41783516]
[1688171652610,8.56618781,1941.0,1940.5,12.94402]
[1688171652815,13.71818781,1941.0,1940.5,12.94402]
[1688171653387,8.56618781,1941.0,1940.5,15.52067]
[1688171654484,8.56618781,1941.0,1940.5,17.41267]
[1688171655000,3.41418781,1941.0,1940.5,17.41267]
[1688171657423,4.47590429,1941.0,1940.5,17.41267]
[1688171657921,9.62788429,1941.0,1940.5,14.83602]
[1688171658126,9.62788429,1941.0,1940.5,9.68271]
[1688171658328,9.62788429,1941.0,1940.5,14.83602]
[1688171661032,20.04337613,1941.0,1940.2,5.15407]
[1688171661220,0.93,1940.8,1940.1,5.15423]
[1688171661530,10.30614,1940.6,1940.1,10.30844]
[1688171661717,10.30614,1940.6,1940.1,15.04035]
[1688171661921,5.7433379,1940.6,1940.1,15.04035]
[1688171662231,0.5902679,1940.6,1940.1,15.04035]
[1688171662399,10.84013184,1940.8,1940.1,15.04035]
[1688171662716,3.0,1940.6,1940.3,10.30756]
[1688171662922,5.68752184,1940.8,1940.3,10.30756]
[1688171663310,10.84003184,1940.8,1940.3,10.30756]
[1688171663701,15.99254184,1940.8,1940.3,10.30756]
[1688171663908,1.59925418,1940.7,1940.3,10.30756]
[1688171664127,9.75206418,1940.7,1940.3,10.30756]
[1688171667444,8.15281,1940.7,1940.3,10.30756]
[1688171667636,3.0,1940.7,1940.3,12.48876]
[1688171667856,13.30526,1940.8,1940.3,12.48876]
[1688171670254,13.30526,1940.8,1940.3,2.1812]
[1688171670255,14.23526,1940.8,1940.3,2.1812]
[1688171670412,19.49903184,1940.8,1940.3,2.1812]
[1688171670613,1.94990318,1940.7,1940.3,2.1812]
[1688171670845,1.94990318,1940.7,1940.3,7.33501]
[1688171670846,5.15308,1940.6,1940.3,7.33501]
[1688171673777,12.25567318,1940.7,1940.3,7.33501]
[1688171673976,3.0,1940.6,1940.3,7.33501]
[1688171676667,8.15311,1940.6,1940.3,7.33501]
[1688171676898,9.67869632,1940.6,1940.3,7.33501]
[1688171682073,9.67869632,1940.6,1940.3,12.48885]
[1688171684506,14.83180632,1940.6,1940.3,12.48885]
[1688171685707,14.83180632,1940.6,1940.3,7.33501]
[1688171686825,14.83180632,1940.6,1940.3,5.15381]
[1688171686984,1.48318063,1940.5,1940.0,2.0891]
[1688171687303,12.88418,1940.4,1940.0,2.7238]
[1688171687504,10.30832,1940.2,1939.9,5.15489]
[1688171688911,14.473898,1940.2,1939.8,9.96789]
[1688171689087,13.30903,1940.1,1939.8,9.96789]
[1688171689806,8.1544,1940.1,1939.8,9.96789]
[1688171690020,13.30903,1940.1,1939.8,9.96789]
[1688171690412,8.1544,1940.1,1939.8,9.96789]
[1688171691125,8.15437,1940.1,1939.8,9.96789]
[1688171691489,8.15437,1940.1,1939.8,4.8129]
[1688171691695,9.9018008,1940.1,1939.8,9.96805]
[1688171691923,9.9018008,1940.1,1939.8,4.8129]
[1688171692223,9.9018008,1940.1,1939.8,9.96807]
[1688171693772,15.0561708,1940.1,1939.7,5.15539]
[1688171693940,9.9018008,1940.1,1939.7,15.03462]
[1688171694246,15.0561708,1940.1,1939.7,15.03462]
[1688171694437,9.9018008,1940.1,1939.7,15.03462]
[1688171695120,15.0561708,1940.1,1939.7,9.87919]
[1688171695320,15.0561708,1940.1,1939.7,15.03462]
[1688171695528,3.0,1940.1,1939.7,9.87919]
[1688171695723,3.0,1940.1,1939.7,17.61233]
[1688171695928,8.1542,1940.2,1939.7,17.61233]
[1688171697214,13.30841,1940.2,1939.7,15.03462]
[1688171698449,13.30841,1940.2,1939.7,9.87919]
[1688171698643,14.989544,1940.2,1939.7,9.87919]
[1688171698850,17.566594,1940.2,1939.7,4.7238]
[1688171699147,21.18211584,1940.2,1939.7,4.7238]
[1688171699355,20.25411584,1940.2,1939.7,9.87916]
[1688171701836,20.25411584,1940.2,1939.7,15.03459]
[1688171702033,5.15469,1940.0,1939.7,15.03459]
[1688171702554,5.15469,1940.0,1939.4,0.41581028]
[1688171702555,0.5,1939.8,1939.4,0.41581028]
[1688171702854,0.5,1939.6,1939.3,2.757]
[1688171703022,13.81165,1939.6,1939.3,2.757]
[1688171703222,17.3195,1939.6,1939.2,2.1148]
[1688171703534,1.73195,1939.5,1939.2,2.1148]
[1688171703748,12.04431,1939.5,1939.2,2.1148]
[1688171703951,3.0,1939.4,1939.2,2.1148]
[1688171704155,8.15631,1939.4,1939.2,2.1148]
[1688171704620,13.31262,1939.4,1939.2,2.1148]
[1688171705025,13.31262,1939.4,1939.1,2.757]
[1688171705222,15.074876,1939.4,1939.1,2.757]
[1688171705774,20.34050784,1939.4,1939.1,2.757]
[1688171708136,20.34050784,1939.4,1938.5,0.9643514]
[1688171708357,20.34050784,1939.4,1938.8,4.694]
[1688171708358,11.24378,1939.2,1938.8,4.694]
[1688171708527,12.89322,1939.0,1938.8,2.6434]
[1688171708730,14.482542,1939.0,1938.5,0.0343514]
[1688171708942,10.31564,1938.8,1938.6,2.6434]
[1688171709173,12.89455,1938.8,1938.1,5.15955]
[1688171709383,3.93,1938.7,1938.3,4.694]
[1688171709578,12.89602,1938.6,1938.3,2.6434]
[1688171709765,4.289602,1938.5,1938.3,2.6434]
[1688171709964,5.15889,1938.4,1938.3,2.6434]
[1688171710274,8.15889,1938.4,1938.3,2.6434]
[1688171711147,13.31778,1938.4,1938.1,2.0506]
[1688171711443,5.15942,1938.2,1937.9,0.1]
[1688171711670,0.515942,1938.1,1937.9,0.1]
[1688171711846,3.515942,1938.1,1937.9,0.1]
[1688171712254,8.675682,1938.1,1937.9,0.1]
[1688171712683,3.515942,1938.1,1937.9,0.1]
[1688171712852,8.675672,1938.1,1937.9,0.1]
[1688171713052,13.835402,1938.1,1937.9,0.1]